[Event "*** Titled Tuesday Blitz"]
[Site "Chess.com"]
[Date "2021.03.02"]
[Round "11"]
[White "NikolaGry"]
[Black "GMaka"]
[Result "1-0"]
[WhiteElo "2609"]
[BlackElo "2462"]
[TimeControl "180+1"]
[EndTime "12:09:20 PST"]
[Termination "NikolaGry won by resignation"]

1. b3 {[%clk 0:03:00.9]} 1... g6 {[%clk 0:02:59.1]} 2. Bb2 {[%clk 0:03:01]} 2...
Nf6 {[%clk 0:03:00]} 3. Bxf6 {[%clk 0:03:01]} 3... exf6 {[%clk 0:02:59.8]} 4. c4
{[%clk 0:03:01.2]} 4... Bg7 {[%clk 0:02:58]} 5. Nc3 {[%clk 0:03:00.8]} 5... b6
{[%clk 0:02:58]} 6. Nf3 {[%clk 0:02:58.1]} 6... f5 {[%clk 0:02:56.9]} 7. d4
{[%clk 0:02:52.9]} 7... Bb7 {[%clk 0:02:54.6]} 8. e3 {[%clk 0:02:53]} 8... O-O
{[%clk 0:02:52.8]} 9. g3 {[%clk 0:02:53.2]} 9... d6 {[%clk 0:02:50.1]} 10. Bg2
{[%clk 0:02:52.8]} 10... Nd7 {[%clk 0:02:50.6]} 11. O-O {[%clk 0:02:52.2]} 11...
Nf6 {[%clk 0:02:51.1]} 12. Rc1 {[%clk 0:02:43.6]} 12... Ne4 {[%clk 0:02:42.4]}
13. Nd5 {[%clk 0:02:25.9]} 13... Re8 {[%clk 0:02:11.9]} 14. Nd2 {[%clk
0:02:22.1]} 14... c6 {[%clk 0:02:03.3]} 15. Nf4 {[%clk 0:02:16.2]} 15... c5
{[%clk 0:01:57.1]} 16. Nf3 {[%clk 0:01:52.4]} 16... Qf6 {[%clk 0:01:36.1]} 17.
Re1 {[%clk 0:01:47.1]} 17... g5 {[%clk 0:01:30.5]} 18. Ne2 {[%clk 0:01:46.3]}
18... Rad8 {[%clk 0:01:10.9]} 19. Nd2 {[%clk 0:01:34]} 19... h5 {[%clk
0:01:00.9]} 20. Qc2 {[%clk 0:01:28.7]} 20... Qg6 {[%clk 0:00:50.2]} 21. Rcd1
{[%clk 0:01:22.1]} 21... h4 {[%clk 0:00:48.3]} 22. Nxe4 {[%clk 0:01:16.7]} 22...
Bxe4 {[%clk 0:00:44.4]} 23. Bxe4 {[%clk 0:01:16.1]} 23... fxe4 {[%clk 0:00:45]}
24. dxc5 {[%clk 0:01:06.8]} 24... bxc5 {[%clk 0:00:30.4]} 25. Rd5 {[%clk
0:01:02.4]} 25... Re5 {[%clk 0:00:28.3]} 26. Red1 {[%clk 0:01:00.6]} 26... Rxd5
{[%clk 0:00:28.8]} 27. Rxd5 {[%clk 0:00:58.8]} 27... Be5 {[%clk 0:00:29.7]} 28.
Nc3 {[%clk 0:00:52.5]} 28... f5 {[%clk 0:00:29.8]} 29. Na4 {[%clk 0:00:48.3]}
29... Rf8 {[%clk 0:00:22.6]} 30. Nxc5 {[%clk 0:00:44.5]} 30... hxg3 {[%clk
0:00:21.1]} 31. fxg3 {[%clk 0:00:40.4]} 31... Qh7 {[%clk 0:00:18.4]} 32. Ne6
{[%clk 0:00:37.1]} 32... Rf6 {[%clk 0:00:17.6]} 33. Nxg5 {[%clk 0:00:33.5]}
33... Qh5 {[%clk 0:00:18]} 34. h4 {[%clk 0:00:15.7]} 34... Qg4 {[%clk
0:00:15.1]} 35. Qg2 {[%clk 0:00:12.4]} 35... Bxg3 {[%clk 0:00:15.2]} 36. c5
{[%clk 0:00:12.3]} 36... dxc5 {[%clk 0:00:14.9]} 37. Rd8+ {[%clk 0:00:12]} 37...
Kg7 {[%clk 0:00:15.4]} 38. Rd7+ {[%clk 0:00:12.3]} 38... Kf8 {[%clk 0:00:15.2]}
39. Nh7+ {[%clk 0:00:12]} 39... Ke8 {[%clk 0:00:14.5]} 40. Nxf6+ {[%clk
0:00:12.7]} 40... Kf8 {[%clk 0:00:15.4]} 41. Nxg4 {[%clk 0:00:13.3]} 1-0

[Event "*** Titled Tuesday Blitz"]
[Site "Chess.com"]
[Date "2021.03.02"]
[Round "11"]
[White "stasiek18"]
[Black "KonstantinB_1983"]
[Result "1-0"]
[WhiteElo "2432"]
[BlackElo "2515"]
[TimeControl "180+1"]
[EndTime "12:09:20 PST"]
[Termination "stasiek18 won on time"]

1. d4 {[%clk 0:03:00.9]} 1... Nf6 {[%clk 0:02:59.1]} 2. Bg5 {[%clk 0:03:00.4]}
2... Ne4 {[%clk 0:02:58.2]} 3. h4 {[%clk 0:02:59.9]} 3... d5 {[%clk 0:02:57.9]}
4. Nd2 {[%clk 0:02:59.4]} 4... Bf5 {[%clk 0:02:56.7]} 5. Nxe4 {[%clk 0:02:57.5]}
5... Bxe4 {[%clk 0:02:54.5]} 6. f3 {[%clk 0:02:56.9]} 6... h6 {[%clk 0:02:53.8]}
7. fxe4 {[%clk 0:02:32.3]} 7... hxg5 {[%clk 0:02:52.2]} 8. exd5 {[%clk
0:02:32.6]} 8... Qxd5 {[%clk 0:02:49.4]} 9. Qd3 {[%clk 0:02:29.3]} 9... gxh4
{[%clk 0:02:42.5]} 10. e4 {[%clk 0:02:29]} 10... Qa5+ {[%clk 0:02:40.7]} 11. c3
{[%clk 0:02:29.2]} 11... e5 {[%clk 0:02:31.3]} 12. dxe5 {[%clk 0:01:38.6]} 12...
Nd7 {[%clk 0:02:20.1]} 13. Nf3 {[%clk 0:01:35.2]} 13... O-O-O {[%clk 0:02:06]}
14. O-O-O {[%clk 0:01:33.3]} 14... Qxa2 {[%clk 0:02:01.4]} 15. g3 {[%clk
0:01:24.6]} 15... Be7 {[%clk 0:01:54.6]} 16. Bh3 {[%clk 0:01:22.6]} 16... Qa4
{[%clk 0:01:35.5]} 17. gxh4 {[%clk 0:01:14.5]} 17... Rh6 {[%clk 0:01:09.4]} 18.
Ng5 {[%clk 0:00:57.2]} 18... Rb6 {[%clk 0:00:55.6]} 19. Nxf7 {[%clk 0:00:29.3]}
19... Qa1+ {[%clk 0:00:47.7]} 20. Qb1 {[%clk 0:00:28.9]} 20... Qa4 {[%clk
0:00:19.2]} 21. Nxd8 {[%clk 0:00:24.4]} 21... Kxd8 {[%clk 0:00:15]} 22. Bxd7
{[%clk 0:00:23]} 22... Qa5 {[%clk 0:00:14.1]} 23. Bf5+ {[%clk 0:00:15.8]} 23...
Ke8 {[%clk 0:00:13.4]} 24. Bd7+ {[%clk 0:00:11.3]} 24... Kd8 {[%clk 0:00:11.6]}
25. Rhf1 {[%clk 0:00:04.8]} 25... Qxe5 {[%clk 0:00:10]} 26. Be6+ {[%clk
0:00:02.6]} 26... Bd6 {[%clk 0:00:08.7]} 27. Bf5 {[%clk 0:00:02.7]} 27... Qe7
{[%clk 0:00:07.8]} 28. Qd3 {[%clk 0:00:02.9]} 28... Ke8 {[%clk 0:00:06.9]} 29.
Qd5 {[%clk 0:00:03.4]} 29... c6 {[%clk 0:00:06]} 30. Qg8+ {[%clk 0:00:03.3]}
30... Qf8 {[%clk 0:00:04.2]} 31. Bg6+ {[%clk 0:00:04.2]} 31... Ke7 {[%clk
0:00:03.7]} 32. Rxf8 {[%clk 0:00:04.2]} 1-0

[Event "*** Titled Tuesday Blitz"]
[Site "Chess.com"]
[Date "2021.03.02"]
[Round "11"]
[White "Schachspielerr"]
[Black "Grieve72"]
[Result "0-1"]
[WhiteElo "2655"]
[BlackElo "2545"]
[TimeControl "180+1"]
[EndTime "12:09:24 PST"]
[Termination "Grieve72 won by resignation"]

1. d4 {[%clk 0:03:00.9]} 1... d5 {[%clk 0:02:59.7]} 2. c4 {[%clk 0:03:00.8]}
2... e6 {[%clk 0:03:00.2]} 3. Nc3 {[%clk 0:03:00.9]} 3... c6 {[%clk 0:03:00.7]}
4. Nf3 {[%clk 0:03:01.4]} 4... dxc4 {[%clk 0:03:00.8]} 5. a4 {[%clk 0:03:00.9]}
5... Bb4 {[%clk 0:03:01.1]} 6. e4 {[%clk 0:02:57.8]} 6... b5 {[%clk 0:03:01.4]}
7. Bd2 {[%clk 0:02:56.6]} 7... a5 {[%clk 0:02:58.8]} 8. Be2 {[%clk 0:02:50.2]}
8... Ba6 {[%clk 0:02:53]} 9. O-O {[%clk 0:02:49.9]} 9... Nf6 {[%clk 0:02:52.2]}
10. e5 {[%clk 0:02:49.1]} 10... Nd5 {[%clk 0:02:51.3]} 11. Ne4 {[%clk
0:02:49.4]} 11... O-O {[%clk 0:02:33.5]} 12. Bxb4 {[%clk 0:02:39.5]} 12... axb4
{[%clk 0:02:19.6]} 13. b3 {[%clk 0:02:38.3]} 13... Nd7 {[%clk 0:02:10.1]} 14.
Qc2 {[%clk 0:02:28]} 14... cxb3 {[%clk 0:01:58.8]} 15. Qxb3 {[%clk 0:02:26.6]}
15... bxa4 {[%clk 0:01:59.1]} 16. Qc2 {[%clk 0:02:16.6]} 16... b3 {[%clk
0:01:54.1]} 17. Qd2 {[%clk 0:02:15.7]} 17... Bxe2 {[%clk 0:01:53.5]} 18. Qxe2
{[%clk 0:02:16.6]} 18... a3 {[%clk 0:01:41.7]} 19. Qd3 {[%clk 0:02:09]} 19...
Qb6 {[%clk 0:01:27]} 20. Rfb1 {[%clk 0:02:06.3]} 20... Rfb8 {[%clk 0:01:20.4]}
21. Neg5 {[%clk 0:02:03.7]} 21... Nf8 {[%clk 0:01:20.6]} 22. Nd2 {[%clk
0:02:01.6]} 22... b2 {[%clk 0:00:58]} 23. Rxa3 {[%clk 0:02:01.3]} 23... Rxa3
{[%clk 0:00:58.9]} 24. Qxa3 {[%clk 0:02:01.9]} 24... Qxd4 {[%clk 0:00:59.3]} 25.
Ngf3 {[%clk 0:02:02.5]} 25... Qc3 {[%clk 0:00:54.2]} 26. Qa7 {[%clk 0:01:43.4]}
26... Qc1+ {[%clk 0:00:32.1]} 27. Ne1 {[%clk 0:01:43.3]} 27... Nc3 {[%clk
0:00:32]} 28. Rxc1 {[%clk 0:01:03.3]} 28... bxc1=Q {[%clk 0:00:31.6]} 29. Nf3
{[%clk 0:01:03.9]} 29... Rb1 {[%clk 0:00:25.8]} 30. h4 {[%clk 0:00:55]} 30...
Ne2+ {[%clk 0:00:24.6]} 31. Kh1 {[%clk 0:00:53.1]} 31... Qc3 {[%clk 0:00:20.5]}
32. Kh2 {[%clk 0:00:46.7]} 32... Rxe1 {[%clk 0:00:20.1]} 33. Ng5 {[%clk
0:00:46.2]} 33... Qxe5+ {[%clk 0:00:19.6]} 34. g3 {[%clk 0:00:45.8]} 34... Qf5
{[%clk 0:00:15.5]} 35. Qe3 {[%clk 0:00:42.8]} 35... Rf1 {[%clk 0:00:12.7]} 36.
Nh3 {[%clk 0:00:41.3]} 36... Nc1 {[%clk 0:00:08.8]} 37. Kg2 {[%clk 0:00:37.4]}
37... Rd1 {[%clk 0:00:08.5]} 38. Nf4 {[%clk 0:00:36.9]} 38... Rd8 {[%clk
0:00:08.3]} 39. h5 {[%clk 0:00:36.5]} 39... Nd3 {[%clk 0:00:08.3]} 40. Ne2
{[%clk 0:00:36.1]} 40... Ne5 {[%clk 0:00:08]} 41. f4 {[%clk 0:00:30.6]} 41...
Ng4 {[%clk 0:00:07.2]} 42. Qb6 {[%clk 0:00:30.6]} 42... Qe4+ {[%clk 0:00:07.1]}
43. Kh3 {[%clk 0:00:30.4]} 43... Rd2 {[%clk 0:00:06.3]} 44. Qb4 {[%clk
0:00:27.7]} 44... Qxb4 {[%clk 0:00:05.8]} 0-1

[Event "*** Titled Tuesday Blitz"]
[Site "Chess.com"]
[Date "2021.03.02"]
[Round "11"]
[White "exoticprincess"]
[Black "anon219"]
[Result "0-1"]
[WhiteElo "2968"]
[BlackElo "2870"]
[TimeControl "180+1"]
[EndTime "12:09:27 PST"]
[Termination "anon219 won by resignation"]

1. d4 {[%clk 0:03:00.9]} 1... d5 {[%clk 0:02:57.3]} 2. Nc3 {[%clk 0:02:58.9]}
2... Nf6 {[%clk 0:02:55.8]} 3. Bf4 {[%clk 0:02:59.2]} 3... a6 {[%clk 0:02:54.7]}
4. e3 {[%clk 0:02:59.1]} 4... e6 {[%clk 0:02:51.6]} 5. a3 {[%clk 0:02:58.3]}
5... c5 {[%clk 0:02:50.2]} 6. h3 {[%clk 0:02:58.6]} 6... Nc6 {[%clk 0:02:48.8]}
7. Nf3 {[%clk 0:02:58.9]} 7... Bd6 {[%clk 0:02:47.2]} 8. dxc5 {[%clk 0:02:56.2]}
8... Bxc5 {[%clk 0:02:45.8]} 9. Bd3 {[%clk 0:02:56.6]} 9... Bd6 {[%clk
0:02:43.8]} 10. O-O {[%clk 0:02:51.9]} 10... O-O {[%clk 0:02:36.2]} 11. Re1
{[%clk 0:02:33.1]} 11... Bc7 {[%clk 0:02:29]} 12. Bxc7 {[%clk 0:02:30.1]} 12...
Qxc7 {[%clk 0:02:29.9]} 13. e4 {[%clk 0:02:30.3]} 13... d4 {[%clk 0:02:26.1]}
14. e5 {[%clk 0:02:22.8]} 14... Nxe5 {[%clk 0:02:21.6]} 15. Nxd4 {[%clk
0:02:22.7]} 15... Rd8 {[%clk 0:02:18.2]} 16. Ndb5 {[%clk 0:02:03.1]} 16... axb5
{[%clk 0:02:10.9]} 17. Nxb5 {[%clk 0:02:04]} 17... Qc5 {[%clk 0:01:43.2]} 18. b4
{[%clk 0:02:03.5]} 18... Rxd3 {[%clk 0:01:33.6]} 19. bxc5 {[%clk 0:02:03.1]}
19... Rxd1 {[%clk 0:01:32]} 20. Raxd1 {[%clk 0:01:59.6]} 20... Nc6 {[%clk
0:01:32.1]} 21. Nd6 {[%clk 0:01:53.8]} 21... Kf8 {[%clk 0:01:29.3]} 22. Re3
{[%clk 0:01:52]} 22... Bd7 {[%clk 0:01:08.3]} 23. Nxb7 {[%clk 0:01:50]} 23...
Nd5 {[%clk 0:01:08.1]} 24. Rb3 {[%clk 0:01:47.7]} 24... Ne5 {[%clk 0:01:05.3]}
25. Nd6 {[%clk 0:01:44.7]} 25... Ba4 {[%clk 0:01:05]} 26. Rb7 {[%clk 0:01:36.6]}
26... Bc6 {[%clk 0:01:01.5]} 27. Rb3 {[%clk 0:01:32.7]} 27... Ba4 {[%clk
0:00:56.5]} 28. Rb2 {[%clk 0:01:32.6]} 28... Nd7 {[%clk 0:00:53.7]} 29. Ne4
{[%clk 0:01:05.6]} 29... f5 {[%clk 0:00:45.1]} 30. Ng5 {[%clk 0:01:05.1]} 30...
Ke7 {[%clk 0:00:45.4]} 31. Nxh7 {[%clk 0:01:04.2]} 31... Nxc5 {[%clk 0:00:41.6]}
32. Ng5 {[%clk 0:01:04.2]} 32... Bc6 {[%clk 0:00:38.5]} 33. g3 {[%clk
0:00:53.5]} 33... Rxa3 {[%clk 0:00:37]} 34. Re1 {[%clk 0:00:53]} 34... Kf6
{[%clk 0:00:29.8]} 35. h4 {[%clk 0:00:53.2]} 35... Ne4 {[%clk 0:00:24.8]} 36.
Nf3 {[%clk 0:00:41.2]} 36... Rxf3 {[%clk 0:00:23.8]} 37. c4 {[%clk 0:00:19.3]}
37... Ne7 {[%clk 0:00:14.7]} 38. Rc1 {[%clk 0:00:17.4]} 38... g5 {[%clk
0:00:14.1]} 39. h5 {[%clk 0:00:16]} 39... f4 {[%clk 0:00:14.1]} 40. g4 {[%clk
0:00:15.1]} 40... Rh3 {[%clk 0:00:11.5]} 41. Kg2 {[%clk 0:00:13.8]} 41... Nxf2+
{[%clk 0:00:11.4]} 0-1

[Event "*** Titled Tuesday Blitz"]
[Site "Chess.com"]
[Date "2021.03.02"]
[Round "11"]
[White "wannabe2700"]
[Black "Iskusnyh"]
[Result "0-1"]
[WhiteElo "2703"]
[BlackElo "2624"]
[TimeControl "180+1"]
[EndTime "12:09:27 PST"]
[Termination "Iskusnyh won by checkmate"]

1. b3 {[%clk 0:03:00.9]} 1... d5 {[%clk 0:02:57.8]} 2. Bb2 {[%clk 0:03:01.8]}
2... Bf5 {[%clk 0:02:57.6]} 3. e3 {[%clk 0:03:01.9]} 3... e6 {[%clk 0:02:57.5]}
4. f4 {[%clk 0:03:02.4]} 4... Nf6 {[%clk 0:02:54.3]} 5. Nf3 {[%clk 0:03:02.9]}
5... Be7 {[%clk 0:02:51.7]} 6. Be2 {[%clk 0:03:03.2]} 6... O-O {[%clk
0:02:48.7]} 7. O-O {[%clk 0:03:03.5]} 7... c5 {[%clk 0:02:48.8]} 8. Ne5 {[%clk
0:03:02.3]} 8... Nfd7 {[%clk 0:02:28.7]} 9. g4 {[%clk 0:02:46.3]} 9... Bg6
{[%clk 0:02:24.7]} 10. f5 {[%clk 0:02:42.2]} 10... Nxe5 {[%clk 0:01:51.1]} 11.
Bxe5 {[%clk 0:02:41.2]} 11... Bf6 {[%clk 0:01:39.5]} 12. Bxb8 {[%clk 0:02:20.3]}
12... Bxa1 {[%clk 0:01:25.9]} 13. Bg3 {[%clk 0:02:18.9]} 13... Bf6 {[%clk
0:01:01.8]} 14. fxg6 {[%clk 0:02:18.7]} 14... fxg6 {[%clk 0:01:01.9]} 15. d3
{[%clk 0:02:04.5]} 15... Qe7 {[%clk 0:00:53.4]} 16. Nd2 {[%clk 0:02:01.9]} 16...
Bg5 {[%clk 0:00:51.5]} 17. Bf4 {[%clk 0:02:00.3]} 17... e5 {[%clk 0:00:51.3]}
18. Bxg5 {[%clk 0:01:57.8]} 18... Qxg5 {[%clk 0:00:51.3]} 19. e4 {[%clk
0:01:52.7]} 19... Rxf1+ {[%clk 0:00:45.8]} 20. Nxf1 {[%clk 0:01:50.9]} 20... d4
{[%clk 0:00:41.8]} 21. a4 {[%clk 0:01:45.3]} 21... Rf8 {[%clk 0:00:40.7]} 22.
Qe1 {[%clk 0:01:45.2]} 22... h5 {[%clk 0:00:37.9]} 23. h4 {[%clk 0:01:26.3]}
23... Qf6 {[%clk 0:00:32.5]} 24. gxh5 {[%clk 0:01:16.4]} 24... gxh5 {[%clk
0:00:32.1]} 25. Bxh5 {[%clk 0:01:17]} 25... Qh6 {[%clk 0:00:32.3]} 26. Bg4
{[%clk 0:01:13.5]} 26... Rf4 {[%clk 0:00:32.2]} 27. Qg3 {[%clk 0:01:13.2]} 27...
Qg6 {[%clk 0:00:30.7]} 28. Bf3 {[%clk 0:00:16.2]} 28... Qxg3+ {[%clk 0:00:29.1]}
29. Nxg3 {[%clk 0:00:17.1]} 29... Rxf3 {[%clk 0:00:29.3]} 30. Kg2 {[%clk
0:00:18]} 30... Rf4 {[%clk 0:00:28.6]} 31. h5 {[%clk 0:00:16.5]} 31... Kf7
{[%clk 0:00:27.9]} 32. Ne2 {[%clk 0:00:14.1]} 32... Rg4+ {[%clk 0:00:26.7]} 33.
Kf3 {[%clk 0:00:14.3]} 33... Rg5 {[%clk 0:00:26.6]} 34. Ng3 {[%clk 0:00:14.3]}
34... Kf6 {[%clk 0:00:26.4]} 35. Kf2 {[%clk 0:00:14.1]} 35... Rxg3 {[%clk
0:00:24.9]} 36. Kxg3 {[%clk 0:00:14.4]} 36... Kg5 {[%clk 0:00:25.5]} 37. h6
{[%clk 0:00:14]} 37... gxh6 {[%clk 0:00:25.2]} 38. Kf3 {[%clk 0:00:14.6]} 38...
h5 {[%clk 0:00:25.1]} 39. Kg3 {[%clk 0:00:13.7]} 39... h4+ {[%clk 0:00:25.1]}
40. Kh3 {[%clk 0:00:14.3]} 40... a5 {[%clk 0:00:24.3]} 41. Kg2 {[%clk
0:00:13.9]} 41... Kg4 {[%clk 0:00:24.4]} 42. Kh2 {[%clk 0:00:14.4]} 42... h3
{[%clk 0:00:23.4]} 43. Kg1 {[%clk 0:00:14.2]} 43... Kg3 {[%clk 0:00:23.5]} 44.
Kh1 {[%clk 0:00:14.5]} 44... h2 {[%clk 0:00:23.7]} 45. b4 {[%clk 0:00:12]} 45...
cxb4 {[%clk 0:00:23.1]} 46. c4 {[%clk 0:00:12.1]} 46... dxc3 {[%clk 0:00:22.8]}
47. d4 {[%clk 0:00:12.2]} 47... c2 {[%clk 0:00:22.9]} 48. d5 {[%clk 0:00:11.8]}
48... c1=Q# {[%clk 0:00:23]} 0-1

[Event "*** Titled Tuesday Blitz"]
[Site "Chess.com"]
[Date "2021.03.02"]
[Round "11"]
[White "TimKett"]
[Black "marvinguevara"]
[Result "0-1"]
[WhiteElo "2167"]
[BlackElo "2117"]
[TimeControl "180+1"]
[EndTime "12:09:27 PST"]
[Termination "marvinguevara won on time"]

1. e4 {[%clk 0:03:00.9]} 1... c5 {[%clk 0:02:59.5]} 2. Nf3 {[%clk 0:03:00.2]}
2... Nc6 {[%clk 0:02:59.7]} 3. d4 {[%clk 0:03:00.4]} 3... cxd4 {[%clk
0:02:59.9]} 4. Nxd4 {[%clk 0:03:01]} 4... e5 {[%clk 0:02:59.3]} 5. Nb5 {[%clk
0:02:59.4]} 5... a6 {[%clk 0:02:58.8]} 6. Nd6+ {[%clk 0:02:59.2]} 6... Bxd6
{[%clk 0:02:59.2]} 7. Qxd6 {[%clk 0:02:59.7]} 7... Qf6 {[%clk 0:03:00.1]} 8. Qd1
{[%clk 0:02:59]} 8... Qg6 {[%clk 0:02:59.5]} 9. Nc3 {[%clk 0:02:57.7]} 9... Nge7
{[%clk 0:02:58.8]} 10. g3 {[%clk 0:02:27.4]} 10... d5 {[%clk 0:02:47.9]} 11. Bg2
{[%clk 0:02:13.7]} 11... d4 {[%clk 0:02:44.2]} 12. Nd5 {[%clk 0:02:13.4]} 12...
Nxd5 {[%clk 0:02:25.9]} 13. exd5 {[%clk 0:02:13.1]} 13... Nb4 {[%clk 0:02:25.4]}
14. O-O {[%clk 0:01:57]} 14... Nxc2 {[%clk 0:02:24]} 15. Qe2 {[%clk 0:01:53.1]}
15... O-O {[%clk 0:02:14.4]} 16. Be4 {[%clk 0:01:51.1]} 16... Bf5 {[%clk
0:02:12.3]} 17. Bxc2 {[%clk 0:01:45]} 17... Bxc2 {[%clk 0:02:07.2]} 18. Qxe5
{[%clk 0:01:45.5]} 18... d3 {[%clk 0:02:05.6]} 19. Bd2 {[%clk 0:01:40.1]} 19...
Rfd8 {[%clk 0:01:47.4]} 20. Rfe1 {[%clk 0:01:37.1]} 20... Qd6 {[%clk 0:01:42.6]}
21. Bc3 {[%clk 0:00:59.1]} 21... Qxe5 {[%clk 0:01:36.6]} 22. Rxe5 {[%clk
0:00:59]} 22... f6 {[%clk 0:01:32.7]} 23. Re7 {[%clk 0:00:30.1]} 23... Rxd5
{[%clk 0:01:31.1]} 24. Bd2 {[%clk 0:00:30.2]} 24... Re5 {[%clk 0:01:06.7]} 25.
Rxe5 {[%clk 0:00:18.9]} 25... fxe5 {[%clk 0:01:06.1]} 26. Re1 {[%clk 0:00:19.4]}
26... Re8 {[%clk 0:01:03.5]} 27. Re4 {[%clk 0:00:18.9]} 27... Kf7 {[%clk
0:01:00]} 28. f4 {[%clk 0:00:18.5]} 28... Kf6 {[%clk 0:00:55.5]} 29. Bc3 {[%clk
0:00:17.3]} 29... Kf5 {[%clk 0:00:54.6]} 30. Rxe5+ {[%clk 0:00:13.5]} 30... Rxe5
{[%clk 0:00:52.2]} 31. fxe5 {[%clk 0:00:13.9]} 31... b5 {[%clk 0:00:50.1]} 32.
a3 {[%clk 0:00:11.3]} 32... a5 {[%clk 0:00:49]} 33. Kf2 {[%clk 0:00:08.3]} 33...
b4 {[%clk 0:00:47.6]} 34. axb4 {[%clk 0:00:08.5]} 34... axb4 {[%clk 0:00:47.3]}
35. Bxb4 {[%clk 0:00:09]} 35... Kxe5 {[%clk 0:00:46.9]} 36. Ke3 {[%clk
0:00:09.5]} 36... g6 {[%clk 0:00:43.3]} 37. Bc3+ {[%clk 0:00:08.3]} 37... Kf5
{[%clk 0:00:42.6]} 38. h3 {[%clk 0:00:06.8]} 38... h5 {[%clk 0:00:40.9]} 39. b4
{[%clk 0:00:06.8]} 39... Ke6 {[%clk 0:00:37.5]} 40. Kf4 {[%clk 0:00:05]} 40...
Kd5 {[%clk 0:00:37.6]} 41. Kg5 {[%clk 0:00:04.1]} 41... Kc4 {[%clk 0:00:37.6]}
42. Bd2 {[%clk 0:00:04.4]} 42... Bd1 {[%clk 0:00:34.4]} 43. Kxg6 {[%clk
0:00:04.2]} 43... Be2 {[%clk 0:00:32.5]} 44. Kg5 {[%clk 0:00:02.4]} 44... Kb3
{[%clk 0:00:32]} 45. b5 {[%clk 0:00:01.9]} 45... Bf3 {[%clk 0:00:31]} 0-1

[Event "*** Titled Tuesday Blitz"]
[Site "Chess.com"]
[Date "2021.03.02"]
[Round "11"]
[White "Aslanov_Umid"]
[Black "Bodnar_Mykola"]
[Result "1-0"]
[WhiteElo "2414"]
[BlackElo "2481"]
[TimeControl "180+1"]
[EndTime "12:09:28 PST"]
[Termination "Aslanov_Umid won by checkmate"]

1. e4 {[%clk 0:03:00.9]} 1... e5 {[%clk 0:02:59.7]} 2. Nf3 {[%clk 0:02:58.7]}
2... Nc6 {[%clk 0:02:59.9]} 3. Bc4 {[%clk 0:02:54.1]} 3... Bc5 {[%clk
0:02:59.7]} 4. c3 {[%clk 0:02:53.9]} 4... Nf6 {[%clk 0:02:45.4]} 5. d4 {[%clk
0:02:51.8]} 5... exd4 {[%clk 0:02:46.3]} 6. e5 {[%clk 0:02:49.8]} 6... d5 {[%clk
0:02:45.2]} 7. Bb5 {[%clk 0:02:50.2]} 7... Ne4 {[%clk 0:02:42.9]} 8. cxd4 {[%clk
0:02:49.5]} 8... Bb4+ {[%clk 0:02:43.4]} 9. Bd2 {[%clk 0:02:48.1]} 9... Be7
{[%clk 0:02:40.2]} 10. O-O {[%clk 0:02:44.1]} 10... O-O {[%clk 0:02:38.5]} 11.
Be3 {[%clk 0:02:40.3]} 11... Bg4 {[%clk 0:02:37.5]} 12. h3 {[%clk 0:02:37.7]}
12... Bh5 {[%clk 0:02:27.6]} 13. Nc3 {[%clk 0:02:35.2]} 13... f6 {[%clk
0:02:23]} 14. Be2 {[%clk 0:02:28.7]} 14... Nxc3 {[%clk 0:02:11.4]} 15. bxc3
{[%clk 0:02:25.5]} 15... fxe5 {[%clk 0:02:11.6]} 16. Nxe5 {[%clk 0:02:22.8]}
16... Bxe2 {[%clk 0:02:11.1]} 17. Qxe2 {[%clk 0:02:23.7]} 17... Nxe5 {[%clk
0:02:11.2]} 18. dxe5 {[%clk 0:02:21.6]} 18... c6 {[%clk 0:02:11.7]} 19. Qg4
{[%clk 0:02:18]} 19... Qc8 {[%clk 0:02:09.7]} 20. f4 {[%clk 0:02:09]} 20... g6
{[%clk 0:01:53.9]} 21. g3 {[%clk 0:01:54.9]} 21... Kg7 {[%clk 0:01:45.3]} 22.
Kg2 {[%clk 0:01:49.9]} 22... Qf5 {[%clk 0:01:38.8]} 23. Qxf5 {[%clk 0:01:47.2]}
23... gxf5 {[%clk 0:01:39.7]} 24. g4 {[%clk 0:01:45.7]} 24... Kg6 {[%clk
0:01:38.5]} 25. a4 {[%clk 0:01:39.3]} 25... h5 {[%clk 0:01:37.7]} 26. g5 {[%clk
0:01:34.9]} 26... Kf7 {[%clk 0:01:35.3]} 27. a5 {[%clk 0:01:31.9]} 27... Ke6
{[%clk 0:01:35.2]} 28. Rab1 {[%clk 0:01:27.8]} 28... Rfb8 {[%clk 0:01:35.7]} 29.
Kg3 {[%clk 0:01:24.3]} 29... Bd8 {[%clk 0:01:36.1]} 30. Ra1 {[%clk 0:01:22.1]}
30... b6 {[%clk 0:01:32.1]} 31. axb6 {[%clk 0:01:19.8]} 31... axb6 {[%clk
0:01:33]} 32. Kh4 {[%clk 0:01:14.9]} 32... Bc7 {[%clk 0:01:24.1]} 33. Rfb1
{[%clk 0:01:00]} 33... c5 {[%clk 0:01:14.1]} 34. Rxa8 {[%clk 0:00:57.6]} 34...
Rxa8 {[%clk 0:01:15]} 35. Rd1 {[%clk 0:00:52.6]} 35... Ra3 {[%clk 0:01:12.2]}
36. g6 {[%clk 0:00:50.6]} 36... Rxc3 {[%clk 0:01:07.4]} 37. g7 {[%clk 0:00:35]}
37... Kf7 {[%clk 0:01:05.3]} 38. Rxd5 {[%clk 0:00:32]} 38... Kxg7 {[%clk
0:00:40.9]} 39. Bd2 {[%clk 0:00:30]} 39... Rc2 {[%clk 0:00:39.5]} 40. Kg5 {[%clk
0:00:29.9]} 40... c4 {[%clk 0:00:36.2]} 41. Rd7+ {[%clk 0:00:27.4]} 41... Kf8
{[%clk 0:00:36.6]} 42. Bb4+ {[%clk 0:00:24.2]} 42... Ke8 {[%clk 0:00:36.5]} 43.
Rxc7 {[%clk 0:00:23.4]} 43... Kd8 {[%clk 0:00:37.4]} 44. Bd6 {[%clk 0:00:21.6]}
44... b5 {[%clk 0:00:38.3]} 45. e6 {[%clk 0:00:18.1]} 45... Re2 {[%clk
0:00:36.6]} 46. Kf6 {[%clk 0:00:14.6]} 46... b4 {[%clk 0:00:35.5]} 47. Rb7
{[%clk 0:00:12.8]} 47... b3 {[%clk 0:00:35.4]} 48. Rb8# {[%clk 0:00:09.9]} 1-0